[Event "Early-Titled-Tuesday-Blitz-September-12-2023"]
[Site "Chess.com"]
[Date "2023.09.12"]
[Round "6"]
[White "FredddieCroderg"]
[Black "Mikhail_Golubev"]
[Result "0-1"]
[WhiteElo "2307"]
[BlackElo "2598"]
[TimeControl "180+1"]
[EndTime "9:07:46 PDT"]
[Termination "Mikhail_Golubev won on time"]

1. e4 {[%clk 0:03:00.9]} 1... c5 {[%clk 0:02:59.5]} 2. Nf3 {[%clk 0:03:00.8]}
2... d6 {[%clk 0:02:59.7]} 3. d4 {[%clk 0:03:01.2]} 3... cxd4 {[%clk 0:02:59.9]}
4. Nxd4 {[%clk 0:03:02.1]} 4... Nf6 {[%clk 0:02:59.9]} 5. Nc3 {[%clk 0:03:02.7]}
5... Nc6 {[%clk 0:03:00.1]} 6. Bg5 {[%clk 0:03:01]} 6... e6 {[%clk 0:02:58.3]}
7. Qd2 {[%clk 0:03:00.9]} 7... a6 {[%clk 0:02:57.8]} 8. O-O-O {[%clk 0:03:01.4]}
8... Bd7 {[%clk 0:02:58.1]} 9. f4 {[%clk 0:02:58.2]} 9... Be7 {[%clk 0:02:56.4]}
10. Nf3 {[%clk 0:02:44.7]} 10... b5 {[%clk 0:02:53.8]} 11. e5 {[%clk 0:02:38.2]}
11... b4 {[%clk 0:02:53.2]} 12. exf6 {[%clk 0:02:31.7]} 12... bxc3 {[%clk
0:02:53.2]} 13. Qxc3 {[%clk 0:02:27]} 13... gxf6 {[%clk 0:02:53.3]} 14. Bh4
{[%clk 0:02:24.3]} 14... Rg8 {[%clk 0:02:52.9]} 15. Bg3 {[%clk 0:02:08]} 15...
f5 {[%clk 0:02:45.3]} 16. Bc4 {[%clk 0:02:00.6]} 16... d5 {[%clk 0:02:25]} 17.
Bb3 {[%clk 0:01:58.1]} 17... a5 {[%clk 0:02:25.1]} 18. Ba4 {[%clk 0:01:55.2]}
18... Nb4 {[%clk 0:02:23.8]} 19. Qb3 {[%clk 0:01:39.9]} 19... Rc8 {[%clk
0:02:13.4]} 20. c3 {[%clk 0:01:35.5]} 20... Rc4 {[%clk 0:01:48]} 21. Kb1 {[%clk
0:01:31.3]} 21... Bxa4 {[%clk 0:01:36.3]} 22. Qxa4+ {[%clk 0:01:31]} 22... Nc6
{[%clk 0:01:36.9]} 23. Qb5 {[%clk 0:01:16.8]} 23... Qb8 {[%clk 0:01:31.5]} 24.
Qxb8+ {[%clk 0:01:05.4]} 24... Nxb8 {[%clk 0:01:32.4]} 25. Ne5 {[%clk
0:01:01.7]} 25... Rc8 {[%clk 0:01:31.3]} 26. Rhg1 {[%clk 0:00:59.7]} 26... Nd7
{[%clk 0:01:30.6]} 27. Nxd7 {[%clk 0:00:57]} 27... Kxd7 {[%clk 0:01:31.1]} 28.
Bf2 {[%clk 0:00:57.7]} 28... Rc4 {[%clk 0:01:23]} 29. Bd4 {[%clk 0:00:57.3]}
29... Bd6 {[%clk 0:01:22.8]} 30. g3 {[%clk 0:00:56.4]} 30... a4 {[%clk
0:01:21.4]} 31. b3 {[%clk 0:00:56.6]} 31... Rb8 {[%clk 0:01:18.4]} 32. Kc2
{[%clk 0:00:54.7]} 32... Rc6 {[%clk 0:01:17.5]} 33. Rge1 {[%clk 0:00:51.1]}
33... h5 {[%clk 0:01:15.8]} 34. Be5 {[%clk 0:00:46.6]} 34... Bxe5 {[%clk
0:01:09]} 35. Rxe5 {[%clk 0:00:47.5]} 35... axb3+ {[%clk 0:01:08.5]} 36. axb3
{[%clk 0:00:47.3]} 36... Ra8 {[%clk 0:01:08.2]} 37. Rb1 {[%clk 0:00:46.1]} 37...
Ra2+ {[%clk 0:01:05.9]} 38. Rb2 {[%clk 0:00:46.2]} 38... Ra1 {[%clk 0:01:06.3]}
39. Rb1 {[%clk 0:00:46.3]} 39... Rxb1 {[%clk 0:01:05.5]} 40. Kxb1 {[%clk
0:00:46.9]} 40... Rxc3 {[%clk 0:01:05.7]} 41. Kb2 {[%clk 0:00:47.6]} 41... d4
{[%clk 0:00:54.1]} 42. Ra5 {[%clk 0:00:40.3]} 42... Re3 {[%clk 0:00:51.3]} 43.
Ra4 {[%clk 0:00:39.8]} 43... Re2+ {[%clk 0:00:48.1]} 44. Kc1 {[%clk 0:00:40.4]}
44... Rxh2 {[%clk 0:00:45.2]} 45. Rxd4+ {[%clk 0:00:40.9]} 45... Kc6 {[%clk
0:00:39.9]} 46. Rc4+ {[%clk 0:00:40.8]} 46... Kd6 {[%clk 0:00:38.3]} 47. Rd4+
{[%clk 0:00:40.8]} 47... Kc5 {[%clk 0:00:35.3]} 48. Rd7 {[%clk 0:00:40.5]} 48...
Kb4 {[%clk 0:00:31.9]} 49. Rxf7 {[%clk 0:00:40.3]} 49... Kxb3 {[%clk 0:00:31.6]}
50. Rf6 {[%clk 0:00:39.3]} 50... Kc3 {[%clk 0:00:29.5]} 51. Kb1 {[%clk
0:00:34.1]} 51... Re2 {[%clk 0:00:27.8]} 52. Rh6 {[%clk 0:00:33.4]} 52... Re1+
{[%clk 0:00:23.3]} 53. Ka2 {[%clk 0:00:33.4]} 53... Kd4 {[%clk 0:00:17.9]} 54.
Rxh5 {[%clk 0:00:32.3]} 54... Kd5 {[%clk 0:00:18]} 55. Kb2 {[%clk 0:00:30.3]}
55... Ke4 {[%clk 0:00:14.7]} 56. Kc2 {[%clk 0:00:26.6]} 56... Kf3 {[%clk
0:00:13.7]} 57. Rg5 {[%clk 0:00:25.3]} 57... Rg1 {[%clk 0:00:13.7]} 58. Rg6
{[%clk 0:00:24.6]} 58... Rxg3 {[%clk 0:00:12]} 59. Rxe6 {[%clk 0:00:24.7]} 59...
Kxf4 {[%clk 0:00:12.1]} 60. Kd2 {[%clk 0:00:23.5]} 60... Kf3 {[%clk 0:00:08.9]}
61. Re3+ {[%clk 0:00:06.7]} 61... Kf2 {[%clk 0:00:08.6]} 62. Re2+ {[%clk
0:00:03.4]} 62... Kf3 {[%clk 0:00:07.6]} 63. Re3+ {[%clk 0:00:03.7]} 63... Kg2
{[%clk 0:00:07.6]} 64. Re5 {[%clk 0:00:02.8]} 64... f4 {[%clk 0:00:07.1]} 65.
Rf5 {[%clk 0:00:03.1]} 65... f3 {[%clk 0:00:06.7]} 66. Ke1 {[%clk 0:00:03.2]}
66... Rg4 {[%clk 0:00:06.5]} 67. Rf6 {[%clk 0:00:02.6]} 67... Re4+ {[%clk
0:00:06.6]} 68. Kd1 {[%clk 0:00:03.3]} 68... f2 {[%clk 0:00:06.8]} 69. Rg6+
{[%clk 0:00:03.9]} 69... Kf3 {[%clk 0:00:07.1]} 70. Rf6+ {[%clk 0:00:04.5]}
70... Ke3 {[%clk 0:00:07.2]} 71. Rf7 {[%clk 0:00:01.3]} 71... Rd4+ {[%clk
0:00:06.9]} 72. Kc2 {[%clk 0:00:01.1]} 72... Ke2 {[%clk 0:00:07.3]} 73. Re7+
{[%clk 0:00:01.1]} 73... Kf3 {[%clk 0:00:07.6]} 74. Rg7 {[%clk 0:00:01.8]} 74...
Rc4+ {[%clk 0:00:06.9]} 75. Kd3 {[%clk 0:00:01.1]} 75... f1=Q+ {[%clk
0:00:07.5]} 0-1

[Event "Early-Titled-Tuesday-Blitz-September-12-2023"]
[Site "Chess.com"]
[Date "2023.09.12"]
[Round "6"]
[White "FeketeBarika"]
[Black "ChessTankMan"]
[Result "0-1"]
[WhiteElo "2392"]
[BlackElo "2531"]
[TimeControl "180+1"]
[EndTime "9:07:50 PDT"]
[Termination "ChessTankMan won by resignation"]

1. Nf3 {[%clk 0:03:00.9]} 1... d5 {[%clk 0:02:59.8]} 2. g3 {[%clk 0:02:59.2]}
2... Bg4 {[%clk 0:02:57.7]} 3. Bg2 {[%clk 0:03:00.1]} 3... Nd7 {[%clk
0:02:56.8]} 4. h3 {[%clk 0:02:59.8]} 4... Bxf3 {[%clk 0:02:56.4]} 5. Bxf3 {[%clk
0:02:58.9]} 5... c6 {[%clk 0:02:57]} 6. c4 {[%clk 0:02:59]} 6... Ne5 {[%clk
0:02:56.8]} 7. cxd5 {[%clk 0:02:55.2]} 7... Nxf3+ {[%clk 0:02:56.2]} 8. exf3
{[%clk 0:02:55.3]} 8... Qxd5 {[%clk 0:02:56.8]} 9. Nc3 {[%clk 0:02:54.7]} 9...
Qd3 {[%clk 0:02:55.9]} 10. Qe2 {[%clk 0:02:53]} 10... O-O-O {[%clk 0:02:52.5]}
11. Qxd3 {[%clk 0:02:50.4]} 11... Rxd3 {[%clk 0:02:53.4]} 12. Ke2 {[%clk
0:02:50.8]} 12... Rd8 {[%clk 0:02:53.7]} 13. d3 {[%clk 0:02:49.9]} 13... g6
{[%clk 0:02:53.5]} 14. Be3 {[%clk 0:02:49.9]} 14... b6 {[%clk 0:02:38.6]} 15.
Rac1 {[%clk 0:02:46.9]} 15... Kb7 {[%clk 0:02:37.9]} 16. d4 {[%clk 0:02:41.2]}
16... Bg7 {[%clk 0:02:28.8]} 17. Rhd1 {[%clk 0:02:40.6]} 17... Nf6 {[%clk
0:02:27.3]} 18. Ne4 {[%clk 0:02:10]} 18... Nd5 {[%clk 0:02:25.6]} 19. a3 {[%clk
0:02:03]} 19... h6 {[%clk 0:02:20.8]} 20. h4 {[%clk 0:02:01.5]} 20... f5 {[%clk
0:02:20.4]} 21. Nd2 {[%clk 0:01:56.8]} 21... Rhe8 {[%clk 0:02:10.8]} 22. Nc4
{[%clk 0:01:54.7]} 22... e5 {[%clk 0:02:02.8]} 23. dxe5 {[%clk 0:01:54.2]} 23...
Bxe5 {[%clk 0:02:02.2]} 24. f4 {[%clk 0:01:51.5]} 24... Bf6 {[%clk 0:01:55.4]}
25. Kf3 {[%clk 0:01:51.2]} 25... Re4 {[%clk 0:01:45.7]} 26. Rd3 {[%clk
0:01:35.9]} 26... Kc7 {[%clk 0:01:32.2]} 27. b4 {[%clk 0:01:33.4]} 27... Kb7
{[%clk 0:00:30.6]} 28. Rc2 {[%clk 0:01:23.9]} 28... Kc7 {[%clk 0:00:28.4]} 29.
Rc1 {[%clk 0:01:21.7]} 29... Nxe3 {[%clk 0:00:28.4]} 30. Rxd8 {[%clk 0:01:12.7]}
30... Nxc4 {[%clk 0:00:20.5]} 31. Rf8 {[%clk 0:01:12.1]} 31... Nd2+ {[%clk
0:00:20]} 32. Kg2 {[%clk 0:01:11]} 32... Re6 {[%clk 0:00:20.5]} 33. b5 {[%clk
0:01:09.3]} 33... c5 {[%clk 0:00:20.4]} 34. Rf7+ {[%clk 0:01:09.1]} 34... Be7
{[%clk 0:00:20.3]} 35. Rd1 {[%clk 0:01:07.4]} 35... Ne4 {[%clk 0:00:19.8]} 36.
Rd3 {[%clk 0:01:05.3]} 36... c4 {[%clk 0:00:19.2]} 37. Rd4 {[%clk 0:01:03.9]}
37... c3 {[%clk 0:00:19.3]} 38. Rc4+ {[%clk 0:01:03.7]} 38... Kd7 {[%clk
0:00:17.5]} 39. Rh7 {[%clk 0:00:58.5]} 39... h5 {[%clk 0:00:15]} 40. f3 {[%clk
0:00:58.6]} 40... Nd2 {[%clk 0:00:14.3]} 41. Rxc3 {[%clk 0:00:59]} 41... Re2+
{[%clk 0:00:14.4]} 42. Kg1 {[%clk 0:00:57.8]} 42... Ke6 {[%clk 0:00:07.9]} 43.
Rc6+ {[%clk 0:00:51.8]} 43... Kd5 {[%clk 0:00:08.1]} 44. Rxe7 {[%clk 0:00:37.1]}
44... Nxf3+ {[%clk 0:00:07.5]} 45. Kf1 {[%clk 0:00:36.4]} 45... Rxe7 {[%clk
0:00:08.4]} 46. Rxg6 {[%clk 0:00:35.6]} 46... Nd2+ {[%clk 0:00:07]} 47. Kf2
{[%clk 0:00:34.3]} 47... Ne4+ {[%clk 0:00:07.3]} 48. Kg2 {[%clk 0:00:34.4]}
48... Nc3 {[%clk 0:00:07]} 49. Rg5 {[%clk 0:00:33.2]} 49... Ke4 {[%clk 0:00:07]}
50. Rxh5 {[%clk 0:00:32.6]} 50... Nxb5 {[%clk 0:00:07.6]} 51. g4 {[%clk
0:00:29.4]} 51... Rg7 {[%clk 0:00:04.5]} 52. Rg5 {[%clk 0:00:20.9]} 52... Rf7
{[%clk 0:00:03.1]} 53. Kg3 {[%clk 0:00:18.7]} 53... Nd6 {[%clk 0:00:02.2]} 54.
h5 {[%clk 0:00:18.6]} 54... fxg4 {[%clk 0:00:02.6]} 55. Rxg4 {[%clk 0:00:18.9]}
55... Nf5+ {[%clk 0:00:02.9]} 56. Kf2 {[%clk 0:00:18.6]} 56... Rh7 {[%clk
0:00:03.5]} 57. Rg5 {[%clk 0:00:18.4]} 57... Kxf4 {[%clk 0:00:03.8]} 58. Rg6
{[%clk 0:00:17.3]} 58... Rxh5 {[%clk 0:00:04.4]} 59. Rf6 {[%clk 0:00:16.9]}
59... Ke5 {[%clk 0:00:04.1]} 60. Rf7 {[%clk 0:00:16]} 60... Rh2+ {[%clk
0:00:04.7]} 61. Kf3 {[%clk 0:00:15.6]} 61... a5 {[%clk 0:00:04.7]} 62. a4 {[%clk
0:00:15.1]} 62... Ra2 {[%clk 0:00:04.8]} 63. Rb7 {[%clk 0:00:13.7]} 63... Rxa4
{[%clk 0:00:05]} 64. Rxb6 {[%clk 0:00:13.9]} 64... Nd4+ {[%clk 0:00:04.3]} 65.
Ke3 {[%clk 0:00:13.9]} 65... Kd5 {[%clk 0:00:04.6]} 66. Kd3 {[%clk 0:00:13.2]}
66... Ra3+ {[%clk 0:00:05.2]} 67. Kd2 {[%clk 0:00:13.3]} 67... a4 {[%clk
0:00:04.9]} 68. Rb8 {[%clk 0:00:12.8]} 68... Nc6 {[%clk 0:00:02.8]} 69. Rc8
{[%clk 0:00:09.4]} 69... Rh3 {[%clk 0:00:03.2]} 70. Kc2 {[%clk 0:00:08.8]} 70...
Nb4+ {[%clk 0:00:02.7]} 71. Kb2 {[%clk 0:00:09]} 71... a3+ {[%clk 0:00:03.1]}
72. Kc1 {[%clk 0:00:07]} 72... Rh1+ {[%clk 0:00:03.8]} 73. Kd2 {[%clk 0:00:07]}
73... a2 {[%clk 0:00:04.5]} 74. Rd8+ {[%clk 0:00:07.1]} 74... Kc6 {[%clk
0:00:05.2]} 75. Rc8+ {[%clk 0:00:07.3]} 75... Kb7 {[%clk 0:00:05.8]} 0-1

[Event "Early-Titled-Tuesday-Blitz-September-12-2023"]
[Site "Chess.com"]
[Date "2023.09.12"]
[Round "6"]
[White "Vuk2000"]
[Black "HATilay"]
[Result "1-0"]
[WhiteElo "2764"]
[BlackElo "2560"]
[TimeControl "180+1"]
[EndTime "9:08:00 PDT"]
[Termination "Vuk2000 won by resignation"]

1. d4 {[%clk 0:03:00.9]} 1... Nf6 {[%clk 0:03:00.7]} 2. Bg5 {[%clk 0:03:01.1]}
2... d5 {[%clk 0:03:01.5]} 3. Bxf6 {[%clk 0:03:00.7]} 3... gxf6 {[%clk
0:03:02.4]} 4. e3 {[%clk 0:03:00.4]} 4... c5 {[%clk 0:03:02.9]} 5. c4 {[%clk
0:02:59.1]} 5... dxc4 {[%clk 0:03:01.9]} 6. Bxc4 {[%clk 0:02:59.1]} 6... cxd4
{[%clk 0:03:02.4]} 7. exd4 {[%clk 0:03:00]} 7... Bg7 {[%clk 0:03:02.5]} 8. Nc3
{[%clk 0:02:53.9]} 8... O-O {[%clk 0:03:02.9]} 9. Nf3 {[%clk 0:02:49.2]} 9...
Nc6 {[%clk 0:03:03.5]} 10. d5 {[%clk 0:02:19.4]} 10... Ne5 {[%clk 0:02:44.5]}
11. Be2 {[%clk 0:02:06.8]} 11... Qb6 {[%clk 0:02:26]} 12. Qd2 {[%clk 0:02:03.4]}
12... Bd7 {[%clk 0:01:51.3]} 13. O-O {[%clk 0:01:55.9]} 13... Rac8 {[%clk
0:01:51.8]} 14. Rfe1 {[%clk 0:01:47.6]} 14... Rfe8 {[%clk 0:01:49.8]} 15. Rad1
{[%clk 0:01:21.4]} 15... Nc4 {[%clk 0:01:49.1]} 16. Bxc4 {[%clk 0:01:20.4]}
16... Rxc4 {[%clk 0:01:50]} 17. h3 {[%clk 0:01:11]} 17... Kh8 {[%clk 0:01:48.8]}
18. Ne4 {[%clk 0:00:59.7]} 18... Rg8 {[%clk 0:01:03.2]} 19. Ng3 {[%clk
0:00:53.3]} 19... Bf8 {[%clk 0:01:03.3]} 20. Kh2 {[%clk 0:00:43.4]} 20... Rb4
{[%clk 0:00:50.2]} 21. b3 {[%clk 0:00:40.4]} 21... Qd6 {[%clk 0:00:50.6]} 22.
Re3 {[%clk 0:00:33.4]} 22... Bh6 {[%clk 0:00:48.4]} 23. Qc3 {[%clk 0:00:27.8]}
23... Bxe3 {[%clk 0:00:46.2]} 24. Qxe3 {[%clk 0:00:28.7]} 24... a5 {[%clk
0:00:42.8]} 25. Kg1 {[%clk 0:00:26.4]} 25... a4 {[%clk 0:00:42.9]} 26. Rd4
{[%clk 0:00:22.6]} 26... axb3 {[%clk 0:00:40.7]} 27. axb3 {[%clk 0:00:23.5]}
27... Rxd4 {[%clk 0:00:38.3]} 28. Qxd4 {[%clk 0:00:24.4]} 28... Rc8 {[%clk
0:00:36.1]} 29. Nf1 {[%clk 0:00:13.1]} 29... Qc5 {[%clk 0:00:35.2]} 30. Qe4
{[%clk 0:00:12.3]} 30... f5 {[%clk 0:00:30.3]} 31. Qe5+ {[%clk 0:00:11.7]} 31...
f6 {[%clk 0:00:30.6]} 32. Qe1 {[%clk 0:00:10.7]} 32... Re8 {[%clk 0:00:28.3]}
33. Ne3 {[%clk 0:00:10.4]} 33... f4 {[%clk 0:00:27.7]} 34. Nc4 {[%clk
0:00:07.3]} 34... Qxd5 {[%clk 0:00:27.5]} 35. Nb6 {[%clk 0:00:06.2]} 35... Qe6
{[%clk 0:00:27.8]} 36. Qb4 {[%clk 0:00:04.9]} 36... Bc6 {[%clk 0:00:25.9]} 37.
Nd4 {[%clk 0:00:04.1]} 37... Qd6 {[%clk 0:00:21.3]} 38. Qc4 {[%clk 0:00:02.8]}
38... e6 {[%clk 0:00:13]} 39. Na4 {[%clk 0:00:02.3]} 39... Bd5 {[%clk
0:00:12.2]} 40. Qb5 {[%clk 0:00:02.7]} 40... Rg8 {[%clk 0:00:11.5]} 41. f3
{[%clk 0:00:03]} 41... Qe5 {[%clk 0:00:11.5]} 42. Qd3 {[%clk 0:00:02.9]} 42...
Qe3+ {[%clk 0:00:11.7]} 43. Qxe3 {[%clk 0:00:03.2]} 43... fxe3 {[%clk
0:00:12.6]} 44. Kf1 {[%clk 0:00:03.9]} 44... f5 {[%clk 0:00:13.2]} 45. Ne2
{[%clk 0:00:03.8]} 45... e5 {[%clk 0:00:13.1]} 46. Nc5 {[%clk 0:00:03.7]} 46...
f4 {[%clk 0:00:12.8]} 47. Nd3 {[%clk 0:00:03.3]} 47... Re8 {[%clk 0:00:12.1]}
48. b4 {[%clk 0:00:03]} 48... Bc6 {[%clk 0:00:12.3]} 49. Nc3 {[%clk 0:00:02.3]}
49... Kg7 {[%clk 0:00:09]} 50. Ke2 {[%clk 0:00:02.8]} 50... Kf6 {[%clk
0:00:09.4]} 51. b5 {[%clk 0:00:03.4]} 51... Bd7 {[%clk 0:00:08.9]} 52. Ne4+
{[%clk 0:00:03.9]} 52... Ke6 {[%clk 0:00:09]} 53. Nec5+ {[%clk 0:00:04.2]} 53...
Kd6 {[%clk 0:00:09]} 54. Nxb7+ {[%clk 0:00:04.3]} 54... Kd5 {[%clk 0:00:08.6]}
55. b6 {[%clk 0:00:03.5]} 55... Bb5 {[%clk 0:00:08.7]} 56. Nc5 {[%clk
0:00:03.7]} 56... Bxd3+ {[%clk 0:00:08.1]} 57. Nxd3 {[%clk 0:00:03.6]} 57... Rb8
{[%clk 0:00:08.3]} 58. Nb4+ {[%clk 0:00:03.8]} 58... Kc4 {[%clk 0:00:07.4]} 59.
Nc6 {[%clk 0:00:03.6]} 59... Rxb6 {[%clk 0:00:07.6]} 60. Nxe5+ {[%clk
0:00:04.3]} 60... Kd4 {[%clk 0:00:08.1]} 61. Nd3 {[%clk 0:00:04.5]} 61... Rf6
{[%clk 0:00:05.7]} 62. h4 {[%clk 0:00:04.3]} 62... h5 {[%clk 0:00:06.3]} 63. Ne1
{[%clk 0:00:04.1]} 63... Rf5 {[%clk 0:00:06.1]} 64. Nd3 {[%clk 0:00:04.1]} 64...
Rf6 {[%clk 0:00:05.6]} 65. Nb4 {[%clk 0:00:04.2]} 65... Rb6 {[%clk 0:00:05.6]}
66. Nd3 {[%clk 0:00:04.6]} 66... Rb3 {[%clk 0:00:03.9]} 67. Nxf4 {[%clk
0:00:04.5]} 67... Rb2+ {[%clk 0:00:04.5]} 68. Ke1 {[%clk 0:00:04.9]} 68... Rd2
{[%clk 0:00:04.2]} 69. Ne2+ {[%clk 0:00:04.9]} 69... Kd3 {[%clk 0:00:04]} 70.
Nf4+ {[%clk 0:00:05.1]} 70... Kc2 {[%clk 0:00:04]} 71. g4 {[%clk 0:00:03.6]}
71... hxg4 {[%clk 0:00:03.2]} 72. fxg4 {[%clk 0:00:04.5]} 72... Rh2 {[%clk
0:00:03.3]} 73. h5 {[%clk 0:00:04.1]} 73... Kc3 {[%clk 0:00:02.5]} 74. g5 {[%clk
0:00:04.1]} 74... Kd4 {[%clk 0:00:02.6]} 75. g6 {[%clk 0:00:04.6]} 75... Ke4
{[%clk 0:00:01.4]} 76. g7 {[%clk 0:00:04.7]} 76... Rh1+ {[%clk 0:00:02]} 77. Ke2
{[%clk 0:00:05.3]} 77... Rg1 {[%clk 0:00:02.7]} 78. Ng6 {[%clk 0:00:05.9]} 78...
Rg2+ {[%clk 0:00:02.4]} 79. Kf1 {[%clk 0:00:06.3]} 79... Kf3 {[%clk 0:00:02.2]}
80. Nh4+ {[%clk 0:00:05.8]} 80... Kg3 {[%clk 0:00:02.8]} 81. Nxg2 {[%clk
0:00:06.1]} 81... e2+ {[%clk 0:00:03.3]} 82. Kxe2 {[%clk 0:00:06.5]} 1-0

[Event "Early-Titled-Tuesday-Blitz-September-12-2023"]
[Site "Chess.com"]
[Date "2023.09.12"]
[Round "6"]
[White "shimastream"]
[Black "SchmakAttack"]
[Result "1/2-1/2"]
[WhiteElo "2950"]
[BlackElo "2787"]
[TimeControl "180+1"]
[EndTime "9:08:12 PDT"]
[Termination "Game drawn by repetition"]

1. d4 {[%clk 0:03:00.9]} 1... Nf6 {[%clk 0:02:57.5]} 2. Bg5 {[%clk 0:02:59]}
2... d5 {[%clk 0:02:56.3]} 3. Nd2 {[%clk 0:02:58.1]} 3... c5 {[%clk 0:02:55.5]}
4. dxc5 {[%clk 0:02:59]} 4... e6 {[%clk 0:02:53.4]} 5. e4 {[%clk 0:02:57.4]}
5... h6 {[%clk 0:02:49.3]} 6. Bh4 {[%clk 0:02:51.9]} 6... Nc6 {[%clk 0:02:10.9]}
7. exd5 {[%clk 0:02:33.3]} 7... exd5 {[%clk 0:02:06.2]} 8. Nb3 {[%clk 0:02:22]}
8... g5 {[%clk 0:02:05.7]} 9. Bg3 {[%clk 0:02:21.6]} 9... Ne4 {[%clk 0:02:06.1]}
10. Nf3 {[%clk 0:02:03.6]} 10... Bxc5 {[%clk 0:01:53.2]} 11. Nxc5 {[%clk
0:02:00.8]} 11... Qa5+ {[%clk 0:01:53.6]} 12. c3 {[%clk 0:01:58.6]} 12... Qxc5
{[%clk 0:01:53.6]} 13. Nd2 {[%clk 0:01:26.2]} 13... Nxg3 {[%clk 0:01:36.3]} 14.
hxg3 {[%clk 0:01:25.8]} 14... Bf5 {[%clk 0:01:36.5]} 15. Nb3 {[%clk 0:01:25]}
15... Qe7+ {[%clk 0:01:30]} 16. Be2 {[%clk 0:01:24.2]} 16... O-O-O {[%clk
0:01:29.2]} 17. Nd4 {[%clk 0:01:24.9]} 17... Be4 {[%clk 0:01:24.5]} 18. O-O
{[%clk 0:01:22.1]} 18... h5 {[%clk 0:01:22.5]} 19. Re1 {[%clk 0:01:08.7]} 19...
Qf6 {[%clk 0:01:11.9]} 20. Qa4 {[%clk 0:00:49.5]} 20... Nxd4 {[%clk 0:00:53.4]}
21. Qxd4 {[%clk 0:00:49.2]} 21... Qxd4 {[%clk 0:00:53.3]} 22. cxd4 {[%clk
0:00:50.1]} 22... Kc7 {[%clk 0:00:52.3]} 23. Rac1+ {[%clk 0:00:49.6]} 23... Kd6
{[%clk 0:00:52.4]} 24. Rc3 {[%clk 0:00:48]} 24... h4 {[%clk 0:00:45.3]} 25. gxh4
{[%clk 0:00:47]} 25... Rxh4 {[%clk 0:00:40.4]} 26. Rec1 {[%clk 0:00:34.4]} 26...
Bf5 {[%clk 0:00:34.2]} 27. Rd1 {[%clk 0:00:29.5]} 27... Rdh8 {[%clk 0:00:29.9]}
28. f3 {[%clk 0:00:29.7]} 28... Rh1+ {[%clk 0:00:25.9]} 29. Kf2 {[%clk
0:00:30.1]} 29... Rxd1 {[%clk 0:00:26.8]} 30. Bxd1 {[%clk 0:00:30.8]} 30... Rh1
{[%clk 0:00:27.6]} 31. Be2 {[%clk 0:00:24.9]} 31... Rb1 {[%clk 0:00:22.8]} 32.
Rb3 {[%clk 0:00:25.2]} 32... b6 {[%clk 0:00:23.3]} 33. Ba6 {[%clk 0:00:17.8]}
33... Bc2 {[%clk 0:00:17]} 34. Rb4 {[%clk 0:00:18.2]} 34... Ra1 {[%clk
0:00:14.1]} 35. a3 {[%clk 0:00:17.5]} 35... Rd1 {[%clk 0:00:13.6]} 36. Ke2
{[%clk 0:00:16.8]} 36... Rg1 {[%clk 0:00:13.7]} 37. Kf2 {[%clk 0:00:17.1]} 37...
Rd1 {[%clk 0:00:06.8]} 38. g4 {[%clk 0:00:15.5]} 38... f5 {[%clk 0:00:02.4]} 39.
gxf5 {[%clk 0:00:15.3]} 39... Bxf5 {[%clk 0:00:02.5]} 40. Be2 {[%clk 0:00:15.5]}
40... Rd2 {[%clk 0:00:02.4]} 41. Ke3 {[%clk 0:00:16.1]} 41... Rc2 {[%clk
0:00:03]} 42. Bd1 {[%clk 0:00:16.6]} 42... Rc1 {[%clk 0:00:03.2]} 43. Kd2 {[%clk
0:00:17.1]} 43... Rc8 {[%clk 0:00:03.9]} 44. Rb3 {[%clk 0:00:17.3]} 44... Rf8
{[%clk 0:00:03.2]} 45. Rc3 {[%clk 0:00:17.2]} 45... Bd7 {[%clk 0:00:03.7]} 46.
Be2 {[%clk 0:00:17.2]} 46... Bc6 {[%clk 0:00:03.5]} 47. Rc1 {[%clk 0:00:17.2]}
47... Bd7 {[%clk 0:00:03.3]} 48. Rh1 {[%clk 0:00:17.3]} 48... Rf4 {[%clk
0:00:02.2]} 49. Ke3 {[%clk 0:00:17.3]} 49... Rf6 {[%clk 0:00:02.6]} 50. Rg1
{[%clk 0:00:16.2]} 50... Re6+ {[%clk 0:00:01.9]} 51. Kd2 {[%clk 0:00:16.3]}
51... Rg6 {[%clk 0:00:02.5]} 52. Bd3 {[%clk 0:00:12.2]} 52... Rg8 {[%clk
0:00:02.9]} 53. Rh1 {[%clk 0:00:13]} 53... Rf8 {[%clk 0:00:02.3]} 54. Rh6+
{[%clk 0:00:13.3]} 54... Ke7 {[%clk 0:00:02.8]} 55. Be2 {[%clk 0:00:14]} 55...
Rf6 {[%clk 0:00:02.9]} 56. Rh5 {[%clk 0:00:14.4]} 56... Rg6 {[%clk 0:00:03.2]}
57. Ke3 {[%clk 0:00:14.6]} 57... Kd6 {[%clk 0:00:03.6]} 58. Rh7 {[%clk
0:00:14.8]} 58... g4 {[%clk 0:00:03.4]} 59. fxg4 {[%clk 0:00:11.5]} 59... Bxg4
{[%clk 0:00:04.3]} 60. Bxg4 {[%clk 0:00:11.6]} 60... Rxg4 {[%clk 0:00:05.2]} 61.
Rxa7 {[%clk 0:00:10]} 61... Rg2 {[%clk 0:00:05.7]} 62. b4 {[%clk 0:00:10.1]}
62... Rg3+ {[%clk 0:00:05.9]} 63. Kd2 {[%clk 0:00:09]} 63... Kc6 {[%clk
0:00:05.7]} 64. a4 {[%clk 0:00:08.8]} 64... Rb3 {[%clk 0:00:01.4]} 65. b5+
{[%clk 0:00:08.9]} 65... Kd6 {[%clk 0:00:01.9]} 66. Rb7 {[%clk 0:00:09.3]} 66...
Rb4 {[%clk 0:00:02.5]} 67. Rxb6+ {[%clk 0:00:09.4]} 67... Kd7 {[%clk 0:00:01.9]}
68. Ra6 {[%clk 0:00:07.6]} 68... Rxd4+ {[%clk 0:00:01.9]} 69. Kc3 {[%clk
0:00:08.3]} 69... Rg4 {[%clk 0:00:02.4]} 70. Kb3 {[%clk 0:00:06.8]} 70... Rf4
{[%clk 0:00:01.9]} 71. Rc6 {[%clk 0:00:06.8]} 71... Rf1 {[%clk 0:00:01.9]} 72.
a5 {[%clk 0:00:06.4]} 72... Rb1+ {[%clk 0:00:02.3]} 73. Ka4 {[%clk 0:00:06.7]}
73... d4 {[%clk 0:00:02.2]} 74. Rc4 {[%clk 0:00:06.6]} 74... Rd1 {[%clk
0:00:02.6]} 75. Kb3 {[%clk 0:00:03.9]} 75... Rb1+ {[%clk 0:00:02.6]} 76. Ka4
{[%clk 0:00:04.4]} 76... Rd1 {[%clk 0:00:03.2]} 77. Kb4 {[%clk 0:00:04.7]} 77...
d3 {[%clk 0:00:03.4]} 78. Rd4+ {[%clk 0:00:04.5]} 78... Kc7 {[%clk 0:00:03.5]}
79. b6+ {[%clk 0:00:02.6]} 79... Kb7 {[%clk 0:00:02]} 80. Rd7+ {[%clk
0:00:02.8]} 80... Kc6 {[%clk 0:00:01.8]} 81. Rc7+ {[%clk 0:00:03.3]} 81... Kd6
{[%clk 0:00:02.5]} 82. Kc3 {[%clk 0:00:03.8]} 82... Rc1+ {[%clk 0:00:02]} 83.
Kxd3 {[%clk 0:00:02.3]} 83... Rxc7 {[%clk 0:00:02.9]} 84. bxc7 {[%clk
0:00:02.9]} 84... Kxc7 {[%clk 0:00:03.8]} 85. Kc4 {[%clk 0:00:03.4]} 85... Kb7
{[%clk 0:00:04.7]} 86. Kb5 {[%clk 0:00:04.3]} 86... Ka7 {[%clk 0:00:05.4]} 87.
a6 {[%clk 0:00:05]} 87... Ka8 {[%clk 0:00:06]} 88. Ka5 {[%clk 0:00:05.9]} 88...
Ka7 {[%clk 0:00:06.4]} 89. Kb5 {[%clk 0:00:06.1]} 89... Ka8 {[%clk 0:00:07.3]}
90. Kc6 {[%clk 0:00:07]} 90... Ka7 {[%clk 0:00:07.9]} 91. Kc5 {[%clk 0:00:07.9]}
91... Ka8 {[%clk 0:00:08.8]} 92. Kb5 {[%clk 0:00:08.8]} 92... Ka7 {[%clk
0:00:09.3]} 93. Kc5 {[%clk 0:00:09.7]} 93... Ka8 {[%clk 0:00:10.2]} 94. Kc6
{[%clk 0:00:10.6]} 94... Ka7 {[%clk 0:00:11.1]} 95. Kb5 {[%clk 0:00:11.5]}
1/2-1/2